Cogmind - Beta 14 *** ADVENTURER MODE // 2024.08.09 @ 00:54:51 Player: Vexic Result: Destroyed by G-47 Trooper with Particle Gun Performance ------------- Evolutions (3) 1500 Regions Visited (9) 1800 Robots Destroyed (132) 660 Value Destroyed (5144) 5144 Prototype IDs (32) 640 Alien Tech Used (0) 0 Bonus (2468) 2468 TOTAL SCORE: 12212 Bonus ------- High Alert Combat Kills 672 Follower Combat Kills 296 Entered Garrisons 200 Used RIF Installer 500 Entered DSFs 500 Aligned with FarCom 300 Cogmind --------- Core Integrity 0/700 Matter 6/300 Energy 100/100 System Corruption 2% Temperature Cool (9) Movement Core (700) Ox13 Location -7/DSF Parts ------- > --- POWER (1) -------- (None) > --- PROPULSION (2) --- (None) > --- UTILITY (8) ------ High-capacity Storage Unit Advanced Visual Processing Unit > --- WEAPON (2) ------- (None) > --- INVENTORY (20) --- Improved Fusion Compressor Improved Light Armor Plating Improved Light Armor Plating Improved Light Armor Plating Hacking Suite Relay Coupler [NC] (37) Relay Coupler [Heavy] (14) Precision Beam Rifle Heavy Linear Accelerator Heavy Linear Accelerator Heavy Linear Accelerator Improved Grenade Launcher Advanced Datajack Peak State ------------ > --- POWER ------------ Improved Fusion Compressor > --- PROPULSION ------- Advanced Medium Treads Advanced Medium Treads > --- UTILITY ---------- Cryofiber Web Advanced Heat Sink High-capacity Storage Unit Medium Matter Pod Matter Compressor Advanced Visual Processing Unit Layered Medium Armor Plating Hacking Suite > --- WEAPON ----------- Heavy Linear Accelerator > --- INVENTORY -------- Hybrid Antimatter Reactor Improved Light Armor Plating Improved Light Armor Plating Improved Light Armor Plating Improved Light Armor Plating Improved Light Armor Plating Hacking Suite Relay Coupler [NC] Relay Coupler [Grunt] Relay Coupler [Heavy] Precision Beam Rifle Heavy Linear Accelerator Heavy Linear Accelerator Heavy Linear Accelerator Improved Grenade Launcher Advanced Datajack Remote Datajack [Rating: 73] Favorites ----------- Power Light Nuclear Core Engine Light Angular Momentum Engine Power Core Light Nuclear Core Reactor Hybrid Antimatter Reactor Propulsion Light Treads Treads Light Treads Leg Improved Titanium Leg Utility High-capacity Storage Unit Device Advanced Heat Sink Storage High-capacity Storage Unit Processor Advanced Visual Processing Unit Hackware Hacking Suite Protection Improved Light Armor Plating Weapon Advanced Assault Cannon Energy Gun Heavy EM Pulse Gun Energy Cannon Improved EM Pulse Cannon Ballistic Gun Enhanced Autogun Ballistic Cannon Advanced Assault Cannon Launcher Grenade Launcher Special Weapon Mining Laser Slashing Weapon Greatsword Special Melee Weapon Datajack Build | -11 -10 -10 -10 -9 -8 -7 -7 -7 -7 ------- Run | Yrd Mat Min Exi Min Mat Fac Gar Fac DSF Slots Evolved 6 | . . . . . 4 2 . . . Power . | . . . . . . . . . . Propulsion . | . . . . . . . . . . Utility 6 | . . . . . 4 2 . . . Weapon . | . . . . . . . . . . Parts Attached 132 | 7 9 7 3 5 43 22 31 . 5 Power 21 | 2 2 . 1 1 5 2 8 . . Engine 4 | 2 . . . 1 1 . . . . Core 14 | . 2 . 1 . 4 2 5 . . Reactor 3 | . . . . . . . 3 . . Propulsion 19 | 2 1 . . 1 5 2 8 . . Treads 11 | 2 1 . . 1 5 . 2 . . Leg 8 | . . . . . . 2 6 . . Wheel . | . . . . . . . . . . Hover . | . . . . . . . . . . Flight . | . . . . . . . . . . Utility 39 | 1 2 2 2 1 16 6 6 . 3 Device 13 | . 1 . . 1 8 2 1 . . Storage 7 | 1 1 1 2 . . 1 1 . . Processor 3 | . . . . . 2 1 . . . Hackware 2 | . . . . . . 1 . . 1 Protection 14 | . . 1 . . 6 1 4 . 2 Artifact . | . . . . . . . . . . Weapon 53 | 2 4 5 . 2 17 12 9 . 2 Energy Gun 14 | 2 3 3 . . 2 4 . . . Energy Cannon 9 | . . . . 1 7 1 . . . Ballistic Gun 1 | . . . . . 1 . . . . Ballistic Cannon 13 | . . . . 1 3 4 5 . . Launcher 2 | . 1 . . . . 1 . . . Special Weapon 4 | . . 1 . . 1 1 . . 1 Impact Weapon . | . . . . . . . . . . Slashing Weapon 5 | . . . . . 3 . 2 . . Piercing Weapon . | . . . . . . . . . . Special Melee Weapon 5 | . . 1 . . . 1 2 . 1 Unidentified Prototypes 4 | . . . . . 2 1 1 . . Parts Lost 32 | . . 3 . . 12 3 5 . 9 Power 7 | . . . . . 2 2 2 . 1 Propulsion 7 | . . . . . 4 . 1 . 2 Utility 13 | . . 1 . . 4 1 2 . 5 Weapon 5 | . . 2 . . 2 . . . 1 Highest Loss Streak 9 | . . 3 . . 5 1 2 . 9 To Critical Strikes . | . . . . . . . . . . Average Slot Usage (%) 94 | . 98 94 91 99 93 97 94 92 78 Engine 3 | . 2 . . 7 7 5 . . . Core 6 | . 10 14 14 6 1 1 5 . . Treads 16 | . 28 28 28 28 14 1 4 15 12 Leg 3 | . . . . . . 11 10 . . Device 13 | . 13 1 . 13 19 20 15 15 12 Storage 15 | . 14 25 19 14 9 9 18 23 20 Processor 8 | . . . . . 18 20 7 7 7 Hackware 2 | . . . . . . 2 7 7 7 Protection 5 | . . 1 . . 7 7 11 7 5 Energy Gun 6 | . 26 13 14 . 3 6 . . . Energy Cannon 3 | . . . . 13 6 2 . . . Ballistic Cannon 5 | . . . . 13 5 3 8 7 3 Special Weapon 2 | . . 9 14 . . . . . . Peak Build Rating 73 | 6 12 11 10 22 35 47 73 72 72 Average Rating 32 | 4 10 9 9 20 32 43 55 72 57 On Entrance 28 | . 6 11 10 9 22 33 46 72 72 Naked Turns . | . . . . . . . . . . Heaviest Build 209 | 13 52 54 209 65 73 81 99 96 96 Greatest Support 60 | 40 40 40 40 40 51 35 60 60 60 Greatest Overweight (x) 22 | 1 1 1 5 1 22 3 4 1 13 Average Overweight (x) 1 | . . 1 1 1 1 1 1 1 1 Largest Inventory Capacity 35 | 8 20 20 35 20 20 20 20 20 20 Average Capacity 19 | 6 18 20 20 20 20 20 20 20 20 Most Carried 20 | 1 6 5 5 14 18 20 20 19 19 Average Carried 12 | . 4 4 5 10 14 15 19 19 18 Final Capacity 20 | 8 20 20 20 20 20 20 20 20 20 Final Carried 20 | 1 5 5 5 14 14 20 19 19 16 Class Distribution -------------------- 46% | Mutant 29% | Scavenger-Mutant 13% | Hacker-Mutant 8% | Scavenger-Skirmisher Dominant Class ---------------- Mutant | -10/Materials Mutant | -10/Mines Mutant | -10/Exiles Mutant | -9/Mines Scavenger-Mutant | -8/Materials Mutant | -7/Factory Scavenger-Mutant | -7/Garrison Hacker-Mutant | -7/Factory Hacker-Mutant | -7/DSF Resources | -11 -10 -10 -10 -9 -8 -7 -7 -7 -7 ----------- Run | Yrd Mat Min Exi Min Mat Fac Gar Fac DSF Matter Collected 3829 | 212 178 55 . 201 1049 449 1584 . 101 Remotely . | . . . . . . . . . . Salvage Created 4837 | . 686 . . 160 2367 767 758 . 99 Parts 211 | . 35 . . 1 98 31 42 . 4 Haulers Intercepted 7 | . 2 . . . 4 1 . . . Recyclers Shooed 1 | . . . . . 1 . . . . Parts Field Recycled . | . . . . . . . . . . Retrieved Matter . | . . . . . . . . . . Parts Self-Destructed . | . . . . . . . . . . Prevented . | . . . . . . . . . . Kills | -11 -10 -10 -10 -9 -8 -7 -7 -7 -7 ------- Run | Yrd Mat Min Exi Min Mat Fac Gar Fac DSF Combat Hostiles Destroyed 105 | . 12 . . 3 41 13 32 . 4 Melee 8 | . . . . . 7 . 1 . . Guns 18 | . 10 . . . 4 4 . . . Cannons 75 | . . . . 3 29 8 31 . 4 AOE 2 | . 2 . . . . . . . . Classes Destroyed 20 | . 6 . . 2 8 1 1 . 2 Worker 3 | . 1 . . . 1 1 . . . Builder 1 | . . . . . 1 . . . . Tunneler 2 | . . . . . 1 1 . . . Hauler 7 | . 2 . . . 4 1 . . . Recycler 9 | . 1 . . 1 5 2 . . . Mechanic 1 | . . . . . 1 . . . . Operator 3 | . . . . . 2 1 . . . Watcher 8 | . 3 . . . 4 1 . . . Swarmer 24 | . 5 . . . 5 . 14 . . Grunt 47 | . 7 . . . 28 6 6 . . Brawler 1 | . . . . 1 . . . . . Duelist 7 | . . . . . 3 . 4 . . Protector 1 | . . . . . 1 . . . . Sentry 11 | . . . . . 3 1 7 . . Specialist 3 | . . . . . . . . . 3 Hunter 2 | . . . . . 1 1 . . . Programmer 5 | . . . . . . 5 . . . Heavy 1 | . . . . . . . . . 1 Behemoth 1 | . . . . . . . 1 . . Assembled 2 | . . . . 2 . . . . . Best Kill Streak 7 | . 3 . . 1 7 4 6 . 2 Combat Bots Only 6 | . 3 . . 1 4 3 6 . 2 Max Kills in Single Turn 2 | . 2 . . 1 2 2 1 . 1 Gunslinging 1 | . 1 . . . . . . . . Exploded 1 | . 1 . . . . . . . . Melee 1 | . . . . . 1 . 1 . . Uniques/NPCs Destroyed . | . . . . . . . . . . Combat | -11 -10 -10 -10 -9 -8 -7 -7 -7 -7 -------- Run | Yrd Mat Min Exi Min Mat Fac Gar Fac DSF Hostile Shots Fired 808 | . 34 15 . 4 243 103 256 . 153 Missed 244 | . 10 3 . 3 61 47 74 . 46 Damage Taken 6264 | . 258 329 . 20 2079 595 1481 . 1502 Core 1082 | . 104 30 . 20 224 86 154 . 464 Absorbed by Shields 152 | . . . . . 152 . . . . Ignored by Resistances 2128 | . 80 91 . 6 638 211 678 . 424 Regen/Repaired (Parts) 39 | . 39 . . . . . . . . Core Remaining (%) 65 | 100 . . . 38 59 . . . . Volleys Fired 354 | 2 30 3 . 8 136 62 97 . 16 Largest 2 | 2 2 2 . 2 2 2 2 . 1 Hottest 138 | 80 90 90 . 117 121 138 96 . 83 Shots Fired 618 | 4 60 5 . 16 240 116 161 . 16 Gun 138 | 4 57 5 . . 20 52 . . . Cannon 460 | . . . . 16 214 56 161 . 13 Launcher 3 | . 3 . . . . . . . . Special 17 | . . . . . 6 8 . . 3 Kinetic 326 | . . . . 8 110 34 161 . 13 Thermal 161 | 2 . 1 . . 84 74 . . . Explosive 3 | . 3 . . . . . . . . Electromagnetic 117 | 2 57 4 . 8 46 . . . . Robot Hit Streak 39 | 4 13 7 . 20 36 39 16 . 9 Robot Miss Streak 4 | . 2 . . . 3 1 4 . 2 Penetration Max . | . . . . . . . . . . Secondary Targets 1 | . 1 . . . . . . . . Max Gunslinging Chain 1 | . 1 . . . . . . . . Shots Hit Robots 478 | 4 41 6 . 13 201 91 108 . 14 Core Hits 183 | 1 20 2 . 4 79 30 43 . 4 Critical Kills . | . . . . . . . . . . Critical Parts Destroyed . | . . . . . . . . . . Critical Strikes 24 | . 1 . . . 10 4 9 . . Burn 1 | . . . . . . 1 . . . Blast 21 | . . . . . 9 3 9 . . Corrupt 1 | . 1 . . . . . . . . Sever 1 | . . . . . 1 . . . . Melee Attacks 41 | . . 1 . . 23 . 16 . 1 Impact . | . . . . . . . . . . Slashing 29 | . . . . . 23 . 6 . . Piercing . | . . . . . . . . . . Sneak Attacks 13 | . . . . . 3 . 10 . . Combat Hostiles 1 | . . . . . 1 . . . . Follow-up Attacks . | . . . . . . . . . . Damage Inflicted 14553 | 53 1011 63 . 315 6292 2075 3901 . 843 Guns 2023 | 53 681 63 . . 312 914 . . . Cannons 10613 | . . . . 315 4418 1144 3900 . 836 Explosions 587 | . 330 . . . 257 . . . . Melee 1300 | . . . . . 1300 . . . . Ramming 30 | . . . . . 5 17 1 . 7 Kinetic 7631 | . . . . 122 2090 683 3900 . 836 Thermal 3093 | 23 180 12 . . 1503 1375 . . . Explosive 237 | . 64 . . . 173 . . . . Electromagnetic 2262 | 30 767 51 . 193 1221 . . . . Impact . | . . . . . . . . . . Slashing 1300 | . . . . . 1300 . . . . Piercing . | . . . . . . . . . . Highest Corruption 2 | . . . . . 1 2 2 2 2 Average Corruption 1 | . . . . . 1 1 2 2 2 Corruption Purged . | . . . . . . . . . . Corruption Blocked . | . . . . . . . . . . Effects 71 | . . . . . 13 4 50 2 2 Message Errors 15 | . . . . . 4 1 10 . . Matter Fused 18 | . . . . . 2 1 15 . . Heat Flow Errors 7 | . . . . . 2 . 5 . . Energy Discharges 12 | . . . . . 2 1 8 1 . Parts Rejected 3 | . . . . . . . 2 . 1 Parts Fused 1 | . . . . . . . 1 . . Data Loss (minor) 9 | . . . . . 2 1 4 1 1 Data Loss (major) 3 | . . . . . . . 3 . . Misfires 1 | . . . . . . . 1 . . Alerts 2 | . . . . . 1 . 1 . . Overload Shots . | . . . . . . . . . . Overflow Damage 626 | . 26 . . 6 249 31 283 . 31 Projectiles 456 | . . . . 6 105 31 283 . 31 Explosions 72 | . 26 . . . 46 . . . . Melee 98 | . . . . . 98 . . . . Knockbacks 49 | . . . . 2 20 11 12 . 4 Impact 1 | . . . . . . 1 . . . Kinetic 44 | . . . . 2 20 6 12 . 4 Secondary 4 | . . . . . . 4 . . . Self-Inflicted Damage 107 | . 77 . . . 30 . . . . Shots 3 | . 2 . . . 1 . . . . Rammed 8 | . . . . . 1 . 1 . 6 Targets Rammed 12 | . . . . . 1 3 2 . 6 Kicked 3 | . . . . . . 3 . . . Crushed 1 | . . . . . . . 1 . . Highest Temperature 213 | 36 213 72 . . 113 . 86 . . Average Temperature 48 | 20 58 28 . . 29 . 33 . . Received Heat Transfer 2531 | . 90 36 . . 1517 243 375 . 270 Siege Activations . | . . . . . . . . . . Robots Corrupted 1 | . . . . . 1 . . . . Combat Hostiles 1 | . . . . . 1 . . . . Parts Fried 8 | . 3 . . . 5 . . . . Impact Corruptions . | . . . . . . . . . . Robots Melted 1 | . . . . . . 1 . . . Combat Hostiles 1 | . . . . . . 1 . . . Parts Melted 10 | . . . . . 5 5 . . . Heat Transferred 5280 | 50 300 25 . . 2426 2479 . . . Parts Sabotaged . | . . . . . . . . . . Parts Stolen . | . . . . . . . . . . Parts Stripped . | . . . . . . . . . . Power Chain Reactions 4 | . 3 . . . 1 . . . . Alert | -11 -10 -10 -10 -9 -8 -7 -7 -7 -7 ------- Run | Yrd Mat Min Exi Min Mat Fac Gar Fac DSF Peak Influence 2355 | . 173 71 . 63 610 117 2355 1071 753 Initial 1071 | . . 29 . . 20 70 52 1071 661 Average 397 | . 58 20 . 4 329 37 1038 1071 717 Maximum Alert Level 5 | . . . . . 2 . 5 3 3 Low Security (%) 57 | 100 100 100 . 100 23 100 16 . . Level 1 12 | . . . . . 54 . 3 . . Level 2 8 | . . . . . 22 . 11 . 32 Level 3 10 | . . . . . . . 27 100 67 Level 4 4 | . . . . . . . 15 . . Level 5 6 | . . . . . . . 24 . . High Security . | . . . . . . . . . . Max Security . | . . . . . . . . . . Squads Dispatched 19 | . 1 . . 1 10 6 . . 1 Investigation 4 | . 1 . . 1 1 1 . . . Extermination 4 | . . . . . . 4 . . . Reinforcement 6 | . . . . . 4 1 . . 1 Assault 2 | . . . . . 2 . . . . Garrison 3 | . . . . . 3 . . . . Intercept . | . . . . . . . . . . Searches Triggered . | . . . . . . . . . . Construction Impeded . | . . . . . . . . . . Haulers Reinforced . | . . . . . . . . . . Active Scanning Responses . | . . . . . . . . . . Cargo Convoy Interrupts . | . . . . . . . . . . Stealth | -11 -10 -10 -10 -9 -8 -7 -7 -7 -7 --------- Run | Yrd Mat Min Exi Min Mat Fac Gar Fac DSF Distress Signals 2 | . . . . . 2 . . . . Communications Jammed . | . . . . . . . . . . Distress Signals . | . . . . . . . . . . Times Spotted 151 | . 18 3 . 4 61 18 36 . 11 Peak Tracking Total 6 | . 3 2 . 3 5 3 6 . 5 Tactical Retreats 10 | . . . . . 6 . 4 . . Traps | -11 -10 -10 -10 -9 -8 -7 -7 -7 -7 ------- Run | Yrd Mat Min Exi Min Mat Fac Gar Fac DSF Traps Triggered 8 | . 1 . . . 1 . 4 2 . Indirectly . | . . . . . . . . . . Trap Hack Attempts 87 | . . . . . . 85 2 . . Triggered . | . . . . . . . . . . Disarmed 3 | . . . . . . 1 2 . . Reprogrammed 11 | . 6 . . . . 5 . . . Reused . | . . . . . . . . . . Traps Extracted . | . . . . . . . . . . Installed . | . . . . . . . . . . Triggered 1 | . . . . . 1 . . . . Objects Rigged 1 | . 1 . . . . . . . . Exploded 1 | . 1 . . . . . . . . Machines | -11 -10 -10 -10 -9 -8 -7 -7 -7 -7 ---------- Run | Yrd Mat Min Exi Min Mat Fac Gar Fac DSF Machines Disabled 26 | . 6 . . 1 12 . 7 . . Max in Single Turn 3 | . 3 . . . 3 . 1 . . Garrison Access 1 | . . . . . 1 . . . . Garrison Relay 2 | . . . . . . . 2 . . Machines Repaired . | . . . . . . . . . . Machines Dismantled . | . . . . . . . . . . Machines Sabotaged . | . . . . . . . . . . Overloaded Fab Kills . | . . . . . . . . . . Hacking | -11 -10 -10 -10 -9 -8 -7 -7 -7 -7 --------- Run | Yrd Mat Min Exi Min Mat Fac Gar Fac DSF Machines Accessed 27 | . 9 . 5 2 4 4 2 1 . Terminals 19 | . 8 . . 1 4 3 2 1 . Fabricators . | . . . . . . . . . . Repair Stations 1 | . 1 . . . . . . . . Recycling Units . | . . . . . . . . . . Scanalyzers . | . . . . . . . . . . Garrison Access 1 | . . . . . . 1 . . . Total Hacks 107 | . 30 . 48 4 10 11 3 1 . Successful 83 | . 21 . 48 2 3 5 3 1 . Failed 24 | . 9 . . 2 7 6 . . . Catastrophic 4 | . . . . . 2 2 . . . Database Lockouts . | . . . . . . . . . . Manual 23 | . 9 . 4 2 4 3 1 . . Terminals 52 | . 26 . . 3 10 9 3 1 . Fabricators . | . . . . . . . . . . Repair Stations 4 | . 4 . . . . . . . . Recycling Units . | . . . . . . . . . . Scanalyzers . | . . . . . . . . . . Garrison Access 2 | . . . . . . 2 . . . Terminal Hacks 76 | . 15 . 48 2 3 4 3 1 . Record 51 | . 1 . 47 . . 3 . . . Prototype ID Bank 2 | . 2 . . . . . . . . Open Door 1 | . . . . 1 . . . . . Open DSF 1 | . . . . . . . . 1 . Emergency Access Points 4 | . 3 . . . . . 1 . . Repair Station Index 1 | . 1 . . . . . . . . Alert Level 1 | . . . . . 1 . . . . Unreport Threat 1 | . . . . . . 1 . . . Locate Traps 1 | . . . . . 1 . . . . Disarm Traps 1 | . . . . . . . 1 . . Reprogram Traps 1 | . 1 . . . . . . . . Maintenance Status 2 | . 2 . . . . . . . . Hauler Manifests 2 | . 2 . . . . . . . . Registered Components 3 | . 2 . . . 1 . . . . Zone Layout 2 | . 1 . . 1 . . . . . Garrison Registry 1 | . . . . . . . 1 . . Derelict Proto ID Bank 1 | . . . 1 . . . . . . Fabricator Hacks . | . . . . . . . . . . Repair Station Hacks 4 | . 4 . . . . . . . . Scan Component 2 | . 2 . . . . . . . . Repair 2 | . 2 . . . . . . . . Recycling Unit Hacks . | . . . . . . . . . . Scanalyzer . | . . . . . . . . . . Garrison Access Hacks 1 | . . . . . . 1 . . . Unlock Access 1 | . . . . . . 1 . . . Unauthorized Hacks 2 | . 2 . . . . . . . . Terminals 2 | . 2 . . . . . . . . Detonate 2 | . 2 . . . . . . . . Fabricators . | . . . . . . . . . . Repair Stations . | . . . . . . . . . . Recycling Units . | . . . . . . . . . . Scanalyzers . | . . . . . . . . . . Garrison Access . | . . . . . . . . . . Data Cores Recovered . | . . . . . . . . . . Used . | . . . . . . . . . . Hacking Detections 19 | . 9 . . 1 4 4 1 . . Full Trace Events 3 | . 1 . . . 1 1 . . . Feedback Events . | . . . . . . . . . . Feedback Blocked . | . . . . . . . . . . Robot Schematics Acquired . | . . . . . . . . . . Robots Built . | . . . . . . . . . . Authchips . | . . . . . . . . . . Time . | . . . . . . . . . . Total Robot Build Rating . | . . . . . . . . . . Part Schematics Acquired . | . . . . . . . . . . Parts Built . | . . . . . . . . . . Authchips . | . . . . . . . . . . Time . | . . . . . . . . . . Total Part Build Rating . | . . . . . . . . . . Parts Repaired 2 | . 2 . . . . . . . . Time 70 | . 70 . . . . . . . . Parts Recycled . | . . . . . . . . . . Recycled Matter . | . . . . . . . . . . Retrieved Matter . | . . . . . . . . . . Retrieved Components . | . . . . . . . . . . Parts Scanalyzed . | . . . . . . . . . . Part Schematics Acquired . | . . . . . . . . . . Parts Damaged . | . . . . . . . . . . Bothacking | -11 -10 -10 -10 -9 -8 -7 -7 -7 -7 ------------ Run | Yrd Mat Min Exi Min Mat Fac Gar Fac DSF Used RIF Installer 1 | . . . . . . . 1 . . Robots Hacked 6 | . . 1 . . . 1 . . 4 Non-combat 1 | . . . . . . 1 . . . Combat 5 | . . 1 . . . . . . 4 Robot Hacks Applied 7 | . . 1 . . . 2 . . 4 parse_system 2 | . . 1 . . . . . . 1 no_distress 1 | . . . . . . 1 . . . find_station 1 | . . . . . . 1 . . . overwrite_iff 3 | . . . . . . . . . 3 Relay Couplers Released 10 | . . . . . 2 . 8 . . Machine Destruction 10 | . . . . . 2 . 8 . . Attached 1 | . . . . . . . . . 1 Fabnet Peak Effective % . | . . . . . . . . . . Robots Rewired 6 | . . . . . . . 6 . . Allies Hacked . | . . . . . . . . . . Hacks Repelled . | . . . . . . . . . . Allies | -11 -10 -10 -10 -9 -8 -7 -7 -7 -7 -------- Run | Yrd Mat Min Exi Min Mat Fac Gar Fac DSF Total Allies 15 | . . 1 . 3 . . 8 . 3 Largest Group 8 | . . 1 . 3 2 . 8 . 2 Highest-Rated Group 238 | . . 31 . 40 24 . 238 . 32 Highest-Rated Ally 80 | . . 31 . 16 16 . 80 . 16 Total Orders 1 | . . . . 1 . . . . . GUARD 1 | . . . . 1 . . . . . Ally Attacks 98 | . . 6 . 19 19 . 43 . 11 Total Damage 1235 | . . 104 . 156 190 . 640 . 145 Kills 13 | . . 3 . 2 4 . 4 . . Allies Corrupted . | . . . . . . . . . . Allies Melted . | . . . . . . . . . . Intel | -11 -10 -10 -10 -9 -8 -7 -7 -7 -7 ------- Run | Yrd Mat Min Exi Min Mat Fac Gar Fac DSF Robot Analysis Total . | . . . . . . . . . . Derelict Logs Recovered 3 | . . 1 . 2 . . . . . Drone Launches . | . . . . . . . . . . Drone Recoveries . | . . . . . . . . . . Exploration | -11 -10 -10 -10 -9 -8 -7 -7 -7 -7 ------------- Run | Yrd Mat Min Exi Min Mat Fac Gar Fac DSF Turns Passed 15775 | 91 1502 1314 1848 1754 3079 1947 3789 185 266 Spaces Moved 5213 | 51 564 538 759 686 794 491 1177 72 81 Core 8 | 6 . . . . 1 . . . 1 Treads 4081 | 45 564 538 759 686 793 105 439 72 80 Legs 1124 | . . . . . . 386 738 . . Wheels . | . . . . . . . . . . Hover . | . . . . . . . . . . Flight . | . . . . . . . . . . Fastest Speed 50 | 50 160 240 160 240 232 195 195 225 225 Average Speed 248 | 148 222 240 241 240 282 268 248 225 230 Slowest Speed 1150 | 160 240 240 560 240 1150 400 410 225 700 Overloaded Moves . | . . . . . . . . . . Propulsion Burnouts . | . . . . . . . . . . Robots Hopped . | . . . . . . . . . . Cave-ins Triggered . | . . . . . . . . . . Exploration Rate (%) 59 | 6 95 93 93 98 62 12 86 3 42 Regions Visited 9 Branch Regions 3 Pre-discovered Areas 1 | . . . 1 . . . . . . Known Exits Taken 3 | . . . . . 1 1 . 1 . Unknown Exits Taken 5 | 1 1 1 1 1 . . . . . Scrap Searched 3 | . . 2 . 1 . . . . . Spaces Dug 8 | . . . . . 6 1 1 . . Terrain Destroyed 215 | . 47 . . 5 153 1 7 . 2 Melee 1 | . . . . . . . 1 . . Projectile 59 | . . . . 5 45 1 6 . 2 AOE 155 | . 47 . . . 108 . . . . Terrain Rammed . | . . . . . . . . . . Walls Destroyed . | . . . . . . . . . . Machines Disabled . | . . . . . . . . . . Actions | -11 -10 -10 -10 -9 -8 -7 -7 -7 -7 --------- Run | Yrd Mat Min Exi Min Mat Fac Gar Fac DSF Total 7311 | 59 750 553 778 777 1329 997 1851 96 121 Wait 1356 | . 141 5 14 71 306 315 473 21 10 Move 5205 | 50 563 537 758 685 793 491 1176 71 81 Hop . | . . . . . . . . . . Pick Up 45 | . 4 . . 6 10 11 14 . . Fast Attach 34 | 6 3 2 2 2 6 3 9 . 1 Attach 45 | . . 1 . . 22 8 10 . 4 Detach 21 | . . . . 1 11 4 4 . 1 Swap 54 | 1 6 4 1 3 16 11 12 . . Drop 43 | . 3 . 3 1 5 4 26 . 1 Fire 354 | 2 30 3 . 8 136 62 97 . 16 Melee 41 | . . 1 . . 23 . 16 . 1 Ram 2 | . . . . . . . . . 2 Kick 3 | . . . . . . 3 . . . Crush 7 | . . . . . 1 . 2 . 4 Escape Stasis 14 | . . . . . . . 10 4 . Rewire . | . . . . . . . . . . Trap 87 | . . . . . . 85 2 . . Miscellaneous . | . . . . . . . . . . Route ------- -11/Scrapyard -10/Materials (discovered 3 exits: [*Mat x2] / [*Min]) -10/Mines (discovered 3 exits: [*Mat x2] / *Exi) -10/Exiles (discovered 2 exits: *Min x2) -9/Mines (discovered 2 exits: *Mat x2) -8/Materials (discovered 3 exits: *Fac x3) -7/Factory -7/Garrison (discovered 4 exits: *Fac x4) -7/Factory (discovered 2 exits: [*Fac] / DSF) -7/DSF (discovered 1 exit: [*Fac]) History --------- Turn | Location | Event 13 | -11/Scrapyard | Discovered new exit (range 15) 92 | -11/Scrapyard | Entered Materials 302 | -10/Materials | Build established: Mutant 401 | -10/Materials | Discovered new exit (range 16) 525 | -10/Materials | Discovered new exit (range 16) 859 | -10/Materials | Discovered new exit (range 5) 1364 | -10/Materials | Repaired Hvy. EM Pulse Gun 1404 | -10/Materials | Repaired Lgt. Nuclear Core 1594 | -10/Materials | Entered Mines 1616 | -10/Mines | Deemed a non-threat by the Exiles lab entrance 1618 | -10/Mines | Discovered new exit (range 5) 1834 | -10/Mines | Core integrity fell below 50% 1874 | -10/Mines | Lost 3 parts (1u2w) 1915 | -10/Mines | Discovered new exit (range 11) 1917 | -10/Mines | Learned location of 2 exits from Materials 2042 | -10/Mines | Received a Mining Laser from a helpful Derelict 2272 | -10/Mines | Discovered new exit (range 12) 2908 | -10/Mines | Entered Exiles 2947 | -10/Exiles | Discovered new exit (range 14) 3000 | -10/Exiles | Met 8R-AWN 3050 | -10/Exiles | Met EX-HEX 3240 | -10/Exiles | Met EX-DEC 3315 | -10/Exiles | Visited The Gauntlet 3614 | -10/Exiles | Learned location of Zion (-7) 3768 | -10/Exiles | Discovered new exit (range 11) 3933 | -10/Exiles | Met EX-BIN 3986 | -10/Exiles | Aligned with FarCom system 3989 | -10/Exiles | Given EX-Vault access code 4471 | -10/Exiles | Opened EX-Vault 4586 | -10/Exiles | Warned to stay clear of 0b10 Research branches 4756 | -10/Exiles | Entered Mines 4827 | -9/Mines | Met a Derelict shopkeep closing up shop 4833 | -9/Mines | Learned location of 2 exits from Materials 5065 | -9/Mines | Learned 2 Materials zone layouts 5165 | -9/Mines | Assembled infested the area 5170 | -9/Mines | Assisted by a Guerilla fighting off Assembled 5245 | -9/Mines | Joined a pair of Derelicts in attacking an 0b10 outpost 5576 | -9/Mines | Discovered new exit (range 6) 6053 | -9/Mines | Discovered new exit (range 10) 6255 | -9/Mines | Assisted by bots powering up and referring to "LRC-V3" 6510 | -9/Mines | Entered Materials 6510 | -8/Materials | Accompanied by 2 allies 6510 | -8/Materials | Evolved 4 slots: Utility x4 6511 | -8/Materials | Identified exit to Factory 6817 | -8/Materials | Build established: Scavenger-Skirmisher 7868 | -8/Materials | Build established: Scavenger-Mutant 7996 | -8/Materials | Garrison activated, responded to threat 8199 | -8/Materials | Garrison activated, responded to threat 8448 | -8/Materials | Build established: Scavenger-Skirmisher 8510 | -8/Materials | First assault squad dispatched 8535 | -8/Materials | Lost 5 parts (1p3n1u) 8591 | -8/Materials | Lost 3 parts (1n1u1w) 8830 | -8/Materials | Build established: Scavenger-Mutant 9589 | -8/Materials | Entered Factory 9589 | -7/Factory | Evolved 2 slots: Utility x2 10610 | -7/Factory | Build established: Mutant 11221 | -7/Factory | Build established: Hacker-Mutant 11536 | -7/Factory | Identified exit to Garrison 11536 | -7/Factory | Entered Garrison 11578 | -7/Garrison | Triggered checkpoint 11660 | -7/Garrison | Discovered new exit (range 6) 11756 | -7/Garrison | Triggered checkpoint 11892 | -7/Garrison | Triggered checkpoint 11909 | -7/Garrison | Build established: Scavenger-Mutant 11932 | -7/Garrison | Garrison Relay disabled 12103 | -7/Garrison | Triggered checkpoint 12280 | -7/Garrison | Triggered checkpoint 12318 | -7/Garrison | Triggered checkpoint 12450 | -7/Garrison | Discovered new exit (range 10) 12527 | -7/Garrison | Triggered checkpoint 12672 | -7/Garrison | Garrison Relay disabled 13041 | -7/Garrison | Found embedded Infiltrators 13174 | -7/Garrison | Triggered checkpoint 13250 | -7/Garrison | Triggered checkpoint 13398 | -7/Garrison | Discovered new exit (range 59) 13398 | -7/Garrison | Discovered new exit (range 26) 13398 | -7/Garrison | Discovered new exit (range 113) 13398 | -7/Garrison | Discovered new exit (range 67) 13634 | -7/Garrison | Lost 5 allies 14196 | -7/Garrison | Spotted B-75 Beast 14223 | -7/Garrison | Destroyed B-75 Beast 14519 | -7/Garrison | Build established: Hacker-Mutant 15046 | -7/Garrison | Installed Relay Interface Framework 15325 | -7/Garrison | Entered Factory 15506 | -7/Factory | Discovered new exit (range 8) 15510 | -7/Factory | Identified exit to DSF 15510 | -7/Factory | Entered DSF 15550 | -7/DSF | Discovered new exit (range 19) 15567 | -7/DSF | Additional patrols routed to DSF 15743 | -7/DSF | Core integrity fell below 50% 15771 | -7/DSF | Core integrity fell below 20% 15776 | -7/DSF | Destroyed by G-47 Trooper with Particle Gun Last Messages --------------- >>overwrite_iff Rewriting IFF filter. 15752_ G-47 Trooper destroyed. 15752_ Jacked G-47 Trooper... >>overwrite_iff Rewriting IFF filter. 15753_ Remote Datajack destroyed. 15755_ Jacked L-41 Fighter... >>parse_system Reading system data... 15755_ Matter Compressor severed. 15760_ Network quickbooting G-47 Trooper, ETC: 6. 15761_ Slug penetrates Wall. 15764_ Network quickbooting G-47 Trooper, ETC: 8. 15764_ Slug penetrates Wall. 15766_ G-47 Trooper reactivates. 15773_ Slammed into L-41 Fighter. 15774_ Relay Coupler [Grunt] severed. 15774_ Critical hit (Burn: +37). [Achievement: Just Browsing] Map ----- +----------------------------------------------------+ | ??????????????????????????????????? | | ??????????????????????????????????? | | ??????????????????????????????????? | | ??????????????????????????????????? | | ???????????????????????"##????????? | | ??????????????????????""""????????? | | ??????????????????????""""????????? | | ?????????????????????? a"????????? | | ?????????????????????? "????????? | | ?????????????????????? "????????? | | ??????????????????????# #????????? | | ??????????????????????# %#????????? | | ??????????????????????!^%!????????? | | ??????????????????????! [!????????? | | ?????????????????????## ##???????? | | ?????????????????????!! !#???????? | | ??????????????????????! !#???????? | | ??????????????????????! !#???????? | | ???????#?????###?######g ;##??????? | | ??????## ???#!!!# ## !!!#??????? | | ??!!!## "%"##!!!# ##[!g!#??????? | | ?? =" %[^#??????? | | ?? !% h ! [^##?????? | | ?? %* [^[#?????? | | ?????## ##!!!#[[[## [##?????? | | ??????##?????#!!?#[[[## @l#??????? | | ?????????????#???#####; ###??????? | | ????????????????????# =#???????? | | ????????????????????# =#???????? | | ????????????????????# =#???????? | | ????????????????????### ##???????? | | ????????????????????#== #???????? | | ????????????????????#== #???????? | | ?????????????########## ##???????? | | ?????????????# #==### ###??????? | | ?????### ### #==## ####???? | | ?????# ] """""#???? | | ?????# ""##"#???? | | ?????#!!!!! # #==##"""""#??#???? | | ?????#!!!!! #########"""""#??????? | | ?????#######?????????##"####??????? | | ??????????????????????#"#?????????? | | ??????????????????????#""?????????? | | ??????????????????????####????????? | | ??????????????????????????????????? | | ??????????????????????????????????? | | ??????????????????????????????????? | | ??????????????????????????????????? | | | | | +----------------------------------------------------+ Best States ------------- Heat Dissipation 99 Energy Generation 35 Energy Capacity 1100 Matter Stores 400 Matter Capacity 650 Sight Range 20 Terrain Scan Range 16 Terrain Scan Density 85 Additional Mass Support 9 Base Temperature (-) 100 Armor Coverage 375 Resistance: KI 50 Resistance: TH 20 Resistance: EX 20 Resistance: EM 35 Resistance: I 20 Resistance: S 20 Resistance: P 20 Evasion (%) 40 Targeting Accuracy 6 Recoil Reduction 2 Offensive Hacking 20 Relay Coupler Types 1 Relay Coupler Value 32 Item Schematics ----------------- None Robot Schematics ------------------ None Fabricated ------------ Nothing Alien Tech Used ----------------- None Achievements -------------- Just Browsing Tank Challenges ------------ None Game ------ Seed HybridMiniUnit Manual? 0 Play Time 01:54:05 Cumulative 25.0 hours Start 2024.08.08 @ 21:26:18 End 2024.08.09 @ 00:54:51 Sessions 1 Manual Loads 0 Difficulty Adventurer Special Mode None Game No. 45 Rogue 37 Adventurer 8 Explorer 0 Win Type - Total 0 Types 0/0/0/0/0/0/0/0/0 Lore% 14 Gallery% 26 Achievement% 28 Wizard Run 0 Options --------- Layout 0 ASCII 0 Keyboard 0 Movement Mouse Keybinds 0 Fullscreen 1 Font 36/Smallcaps Map View 76x50 Zoom Use 0% Tactical HUD 1 Map Filters NONE Filters NONE Steam 1 RUN: a1b0e828-4fa3-40c7-8c13-cccb7c758126